{"text_format":"1","workbook":"xlsx","n_sheets":3,"sheets":["front_nd","Hora clinica ND","front_nd (2)"],"not_rendered":{"charts":3,"images":12,"macros":1,"external_links":0,"defined_names":16,"comments":0,"pivot_tables":0},"unopened":[],"bounds":{"document_bytes":16777216,"sheet_cells":100000,"rows_first":2000,"rows_last":500,"rows_between":2000,"halvings":0,"cell_chars":16384,"cell_head_chars":4096},"cells_cut":0,"cells_raw":0,"read":"whole","date_system":"1900"}

{"sheet":"front_nd","index":0,"n_rows":0,"n_cols":0,"rows_kept":0,"cut":false,"hidden":false,"merged":[]}

{"sheet":"Hora clinica ND","index":1,"n_rows":41,"n_cols":19,"rows_kept":41,"cut":false,"hidden":false,"merged":[[18,5,18,7],[18,9,19,14],[4,17,4,19],[12,5,12,7],[12,9,13,14],[15,5,15,7],[15,9,16,14],[6,18,8,19],[9,5,9,7],[9,9,10,14],[10,5,10,7],[13,5,13,6],[16,5,16,6],[19,5,19,6],[0,1,2,14],[3,1,4,14],[6,5,6,7],[6,9,7,14],[6,17,8,17],[7,5,7,6]]}
[null,"                                        ",null,null,null,null,null,null,null,null,null,null,null,null,null,null,null,true]
[]
[]
[null,"                 Quanto custa sua hora clinica para ter lucratividade ?"]
[null,null,null,null,null,null,null,null,null,null,null,null,null,null,null,null,null,"Tutorial"]
[]
[null,"1. FATURAMENTO",{"$f":"SUM(C8:C11)","v":35000},1,null,"Ponto de equilibrio",null,null,null,"O ponto de equilíbrio  permite você saber qual o faturamento mensal mínimo para cobrir despesas fixas e variáveis.",null,null,null,null,null,null,null,null,"Insira as informações do seu consultório nas células lilás claro"]
[null,"á vista",30000,{"$f":"IFERROR(C8/$C$7,0)","v":0.8571428571428571},null,{"$f":"C13+C24","v":9330}]
[null,"recebimentos",5000,{"$f":"IFERROR(C9/$C$7,0)","v":0.14285714285714285}]
[null,null,null,0,null,"Lucro desejado mensal",null,null,null,"Insira o lucro desejado, ou seja, a rentabilidade mensal que você deseja ter em sua clínica."]
[null,null,null,0]
[]
[null,"2. CUSTO VARIÁVEL",{"$f":"SUM(C14:C20)","v":4550},{"$f":"IFERROR(C13/$C$7,0)","v":0.13},null,"P.E.+ lucro desejado",null,null,null,"Este resultado mostra qual deverá ser o seu faturamento mensal mínimo para cobrir as despesas e gerar o lucro desejado."]
[null,"dental",1100,{"$f":"IFERROR(C14/$C$13,0)","v":0.24175824175824176},null,{"$f":"F8+F11","v":9330}]
[null,"protético",1800,{"$f":"IFERROR(C15/$C$13,0)","v":0.39560439560439559}]
[null,"impostos",750,0.16483516483516483,null,"Hora Clinica",null,null,null,"Custo da hora clínica para pagar suas despesas mensais (considerando 20 dias úteis, 8hs por dia)"]
[null,"comissão",500,0.10989010989010989,null,{"$f":"IFERROR(F8/20/8,0)","v":58.3125}]
[null,"% retenção cartão",400,8.7912087912087919E-2]
[null,"Outros",null,0,null,"Hora Clinica + lucro",null,null,null,"Custo da hora clínica para pagar suas despesas mensais e gerar o lucro desejado mensal (considerando 20 dias úteis, 8hs por dia)"]
[null,null,null,0,null,{"$f":"IFERROR(F14/20/8,0)","v":58.3125}]
[]
[null,"3. LUCRO BRUTO",{"$f":"SUM(C7-C13)","v":30450},{"$f":"IFERROR(C22/$C$7,0)","v":0.87}]
[]
[null,"4. CUSTO FIXO",{"$f":"SUM(C25:C40)","v":4780},{"$f":"IFERROR(C24/$C$7,0)","v":0.13657142857142857}]
[null,"funcionários",1800,{"$f":"IFERROR(C25/$C$24,0)","v":0.37656903765690375}]
[null,"aluguel",660,{"$f":"IFERROR(C26/$C$24,0)","v":0.13807531380753138}]
[null,"pró-labore",1000,0.20920502092050208]
[null,"água",70,1.4644351464435146E-2]
[null,"luz",350,7.3221757322175729E-2]
[null,"telefone/internet",200,4.1841004184100417E-2]
[null,"celular",80,1.6736401673640166E-2]
[null,"manuteção equipamento",120,2.5104602510460251E-2]
[null,"seguro",null,0]
[null,"segurança",80,1.6736401673640166E-2]
[null,"taxa de lixo",150,3.1380753138075312E-2]
[null,"serviço de terceiros",40,8.368200836820083E-3]
[null,"material expediente",80,1.6736401673640166E-2]
[null,"lanches/café",150,3.1380753138075312E-2]
[null,"Outros",null,0]
[null,null,null,0]
[null,"5. LUCRO LIQUIDO",{"$f":"SUM(C22-C24)","v":25670},{"$f":"SUM(C41/C7)","v":0.73342857142857143}]

{"sheet":"front_nd (2)","index":2,"n_rows":0,"n_cols":0,"rows_kept":0,"cut":false,"hidden":false,"merged":[]}